Cogmind - Beta 16 @@@ ROGUE MODE // 2025.12.12 @ 23:43:58 Player: PopcornMaze Result: Destroyed by A3-87S(R) with Subdweller Machine Gun Performance ------------- Evolutions (0) 0 Regions Visited (2) 400 Robots Destroyed (7) 35 Value Destroyed (168) 168 Prototype IDs (0) 0 Alien Tech Used (0) 0 Bonus (0) 0 TOTAL SCORE: 603 Bonus ------- None Cogmind --------- Core Integrity 0/250 Matter 195/300 Energy 100/100 System Corruption 2% Temperature Cool (0) Movement Core (1400) Ox27 Location -10/Subcaves Parts ------- > --- POWER (1) -------- (None) > --- PROPULSION (2) --- (None) > --- UTILITY (2) ------ Huge Storage Unit Signal Interpreter > --- WEAPON (2) ------- Medium Laser > --- INVENTORY (25) --- Light Ion Engine Light Treads Light Treads Peak State ------------ > --- POWER ------------ Light Nuclear Core > --- PROPULSION ------- Light Treads Light Treads > --- UTILITY ---------- Small Storage Unit Huge Storage Unit > --- WEAPON ----------- Assault Rifle Assault Rifle > --- INVENTORY -------- Ion Engine Light Ion Engine Wheel Wheel Signal Interpreter Medium Laser [Rating: 9] Favorites ----------- Power Light Nuclear Core Engine Light Ion Engine Power Core Light Nuclear Core Propulsion Wheel Treads Light Treads Wheel Wheel Utility Huge Storage Unit Storage Huge Storage Unit Processor Signal Interpreter Weapon Assault Rifle Energy Gun Medium Laser Ballistic Gun Assault Rifle Build | -11 -10 -10 ------- Run | Yrd Mat Sub Slots Evolved . | . . . Power . | . . . Propulsion . | . . . Utility . | . . . Weapon . | . . . Parts Attached 14 | 6 6 2 Power 3 | 1 1 1 Engine 2 | 1 . 1 Core 1 | . 1 . Reactor . | . . . Propulsion 5 | 2 3 . Treads 2 | . 2 . Leg . | . . . Wheel 3 | 2 1 . Hover . | . . . Flight . | . . . Utility 3 | 1 1 1 Device . | . . . Storage 2 | 1 1 . Processor 1 | . . 1 Hackware . | . . . Protection . | . . . Artifact . | . . . Weapon 3 | 2 1 . Energy Gun 1 | 1 . . Energy Cannon . | . . . Ballistic Gun 2 | 1 1 . Ballistic Cannon . | . . . Launcher . | . . . Special Weapon . | . . . Impact Weapon . | . . . Slashing Weapon . | . . . Piercing Weapon . | . . . Special Melee Weapon . | . . . Unidentified Prototypes . | . . . Parts Lost 7 | . 1 6 Power 2 | . . 2 Propulsion 3 | . 1 2 Utility . | . . . Weapon 2 | . . 2 Highest Loss Streak 6 | . 1 6 To Critical Strikes . | . . . Average Backups 4 | 2 5 4 Power 1 | . 1 1 Propulsion 1 | 1 1 2 Utility . | . . . Weapon . | . 1 . Tool/Special . | . . . Unused Backups . | . . . Power . | . . . Propulsion . | . . . Utility . | . . . Weapon . | . . . Tool/Special . | . . . Average Slot Usage (%) 89 | . 83 93 Engine 3 | . 6 1 Core 9 | . 7 10 Treads 5 | . 10 . Wheel 20 | . 16 24 Storage 14 | . 14 14 Processor 7 | . . 14 Energy Gun 4 | . 8 . Ballistic Gun 22 | . 19 25 Peak Build Rating 9 | 6 9 9 Average Rating 7 | 4 7 8 On Entrance 4 | . 6 8 Avg Prop Armor Cover (%) . | . . . Naked Turns . | . . . Heaviest Build 89 | 12 89 89 Greatest Support 40 | 20 40 20 Greatest Overweight (x) 28 | . 4 28 Average Overweight (x) 2 | . . 4 Largest Inventory Capacity 25 | 8 25 25 Average Capacity 17 | 6 10 25 Most Carried 6 | 4 6 5 Average Carried 4 | 2 5 4 Final Capacity 25 | 8 25 25 Final Carried 6 | 4 6 3 Class Distribution -------------------- 100% | Mutant Dominant Class ---------------- Mutant | -10/Materials Mutant | -10/Subcaves Resources | -11 -10 -10 ----------- Run | Yrd Mat Sub Matter Collected 443 | 259 64 120 Remotely . | . . . Salvage Created 211 | . 121 90 Parts 19 | . 10 9 Haulers Intercepted . | . . . Recyclers Shooed . | . . . Parts Field Recycled . | . . . Retrieved Matter . | . . . Parts Self-Destructed 6 | . . 6 Prevented . | . . . Parts Restored . | . . . Kills | -11 -10 -10 ------- Run | Yrd Mat Sub Combat Hostiles Destroyed 6 | . 4 2 Guns 6 | . 4 2 Classes Destroyed 4 | . 3 1 Worker 1 | . 1 . Swarmer 3 | . 3 . Grunt 1 | . 1 . Subdweller 2 | . . 2 Best Kill Streak 2 | . 2 1 Combat Bots Only 2 | . 2 1 Max Kills in Single Turn 1 | . 1 1 Gunslinging . | . . . Exploded . | . . . Melee . | . . . Uniques/NPCs Destroyed . | . . . Combat | -11 -10 -10 -------- Run | Yrd Mat Sub Hostile Shots Fired 83 | . 32 51 Missed 22 | . 7 15 Hits 61 | . 25 36 Projectile 61 | . 25 36 Damage Taken 950 | . 227 723 Core 269 | . 9 260 Absorbed by Shields . | . . . Core Remaining (%) 100 | 100 . . Volleys Fired 43 | . 18 25 Largest 2 | . 2 2 Hottest 70 | . 70 40 Shots Fired 78 | . 36 42 Gun 78 | . 36 42 Cannon . | . . . Launcher . | . . . Special . | . . . Kinetic 67 | . 25 42 Thermal 11 | . 11 . Explosive . | . . . Electromagnetic . | . . . Robot Hit Streak 9 | . 4 9 Robot Miss Streak 8 | . 8 2 Penetration Max . | . . . Secondary Targets 1 | . 1 . Max Gunslinging Chain 1 | . 1 . Shots Hit Robots 46 | . 14 32 Core Hits 14 | . 7 7 Critical Kills . | . . . Critical Parts Destroyed . | . . . Critical Strikes . | . . . Melee Attacks . | . . . Impact . | . . . Slashing . | . . . Piercing . | . . . Sneak Attacks . | . . . Combat Hostiles . | . . . Follow-up Attacks . | . . . Damage Inflicted 406 | . 169 237 Guns 406 | . 169 237 Cannons . | . . . Explosions . | . . . Melee . | . . . Ramming . | . . . Kinetic 331 | . 94 237 Thermal 75 | . 75 . Explosive . | . . . Electromagnetic . | . . . Impact . | . . . Slashing . | . . . Piercing . | . . . Highest Corruption 2 | . 2 2 Average Corruption 2 | . 2 2 Corruption Purged . | . . . Corruption Blocked . | . . . Effects 7 | . 1 6 Message Errors 1 | . . 1 Matter Fused 3 | . . 3 Heat Flow Errors 1 | . . 1 Energy Discharges 1 | . . 1 Data Loss (major) 1 | . 1 . Overload Shots . | . . . Overflow Damage . | . . . Projectiles . | . . . Explosions . | . . . Melee . | . . . Knockbacks . | . . . Impact . | . . . Kinetic . | . . . Secondary . | . . . Self-Inflicted Damage . | . . . Shots . | . . . Rammed . | . . . Targets Rammed . | . . . Kicked . | . . . Crushed . | . . . Highest Temperature 204 | . 90 204 Average Temperature 49 | . 41 109 Received Heat Transfer 78 | . 36 42 Siege Activations . | . . . Martial Activations . | . . . Shielding Activations . | . . . Robots Disrupted . | . . . Combat Hostiles . | . . . Robots Corrupted . | . . . Combat Hostiles . | . . . Parts Fried . | . . . Impact Corruptions . | . . . Robots Melted . | . . . Combat Hostiles . | . . . Parts Melted . | . . . Heat Transferred 222 | . 222 . Parts Sabotaged . | . . . Parts Stolen . | . . . Parts Stripped . | . . . Power Chain Reactions . | . . . Alert | -11 -10 -10 ------- Run | Yrd Mat Sub Maximum Alert Level . | . . . Low Security (%) 100 | 100 100 . Level 1 . | . . . Level 2 . | . . . Level 3 . | . . . Level 4 . | . . . Level 5 . | . . . High Security . | . . . Max Security . | . . . Peak Influence 95 | . 95 . Initial . | . . . Average 29 | . 35 . Influence Increases 135 | . 135 . Destroy 0b10 Robot/C 80 | . 80 . Destroy 0b10 Robot/NC 5 | . 5 . Destroy Leader 20 | . 20 . Disable Machine 15 | . 15 . Lose Combat Pursuer 15 | . 15 . Influence Decreases 135 | . 80 55 Entered New Map 27 | . . 27 Time Decay 108 | . 80 28 Squads Dispatched . | . . . Investigation . | . . . Extermination . | . . . Reinforcement . | . . . Assault . | . . . Garrison . | . . . Intercept . | . . . Searches Triggered . | . . . Construction Impeded . | . . . Haulers Reinforced . | . . . Active Scanning Responses . | . . . Cargo Convoy Interrupts . | . . . Stealth | -11 -10 -10 --------- Run | Yrd Mat Sub Distress Signals . | . . . Communications Jammed . | . . . Distress Signals . | . . . Times Spotted 15 | . 10 5 Peak Tracking Total 4 | . 4 3 Tactical Retreats 1 | . 1 . Traps | -11 -10 -10 ------- Run | Yrd Mat Sub Traps Triggered 1 | . 1 . Indirectly . | . . . Trap Hack Attempts . | . . . Triggered . | . . . Disarmed . | . . . Reprogrammed . | . . . Reused . | . . . Traps Extracted . | . . . Installed . | . . . Triggered . | . . . Machines | -11 -10 -10 ---------- Run | Yrd Mat Sub Machines Disabled 1 | . 1 . Max in Single Turn 1 | . 1 . Machines Repaired . | . . . Machines Dismantled . | . . . Machines Sabotaged . | . . . Overloaded Fab Kills . | . . . Hacking | -11 -10 -10 --------- Run | Yrd Mat Sub Machines Accessed 1 | . 1 . Terminals 1 | . 1 . Fabricators . | . . . Repair Stations . | . . . Recycling Units . | . . . Scanalyzers . | . . . Garrison Access . | . . . Total Hacks 2 | . 2 . Successful 1 | . 1 . Failed 1 | . 1 . Catastrophic . | . . . Database Lockouts . | . . . Manual . | . . . Terminals 2 | . 2 . Fabricators . | . . . Repair Stations . | . . . Recycling Units . | . . . Scanalyzers . | . . . Garrison Access . | . . . Terminal Hacks 1 | . 1 . Emergency Access Points 1 | . 1 . Fabricator Hacks . | . . . Repair Station Hacks . | . . . Recycling Unit Hacks . | . . . Scanalyzer . | . . . Garrison Access Hacks . | . . . Unauthorized Hacks . | . . . Terminals . | . . . Fabricators . | . . . Repair Stations . | . . . Recycling Units . | . . . Scanalyzers . | . . . Garrison Access . | . . . Data Cores Recovered . | . . . Used . | . . . Hacking Detections 1 | . 1 . Full Trace Events . | . . . Feedback Events . | . . . Feedback Blocked . | . . . Robot Schematics Acquired . | . . . Robots Built . | . . . Authchips . | . . . Time . | . . . Total Robot Build Rating . | . . . Part Schematics Acquired . | . . . Parts Built . | . . . Authchips . | . . . Time . | . . . Total Part Build Rating . | . . . Part Studies Acquired . | . . . Parts Repaired . | . . . Time . | . . . Parts Recycled . | . . . Recycled Matter . | . . . Retrieved Matter . | . . . Retrieved Components . | . . . Parts Scanalyzed . | . . . Part Schematics Acquired . | . . . Parts Damaged . | . . . Bothacking | -11 -10 -10 ------------ Run | Yrd Mat Sub Used RIF Installer . | . . . Robots Hacked . | . . . Non-combat . | . . . Combat . | . . . Robot Hacks Applied . | . . . Relay Couplers Released . | . . . Fabnet Peak Effective % . | . . . Robots Rewired . | . . . Allies Hacked . | . . . Hacks Repelled . | . . . Allies | -11 -10 -10 -------- Run | Yrd Mat Sub Total Allies . | . . . Largest Group . | . . . Highest-Rated Group . | . . . Highest-Rated Ally . | . . . Total Orders . | . . . Ally Attacks . | . . . Total Damage . | . . . Kills . | . . . Allies Corrupted . | . . . Allies Melted . | . . . Intel | -11 -10 -10 ------- Run | Yrd Mat Sub Active Infowar (turns) . | . . . Robot Analysis Total . | . . . Derelict Logs Recovered . | . . . Drone Launches . | . . . Drone Recoveries . | . . . Exploration | -11 -10 -10 ------------- Run | Yrd Mat Sub Turns Passed 615 | 53 259 303 Spaces Moved 358 | 51 160 147 Core 4 | 2 . 2 Treads 36 | . 36 . Legs . | . . . Wheels 318 | 49 124 145 Hover . | . . . Flight . | . . . Fastest Speed 50 | 50 80 140 Average Speed 123 | 78 107 157 Slowest Speed 1450 | 80 160 1450 Overloaded Moves . | . . . Propulsion Burnouts . | . . . Robots Hopped . | . . . Potential Cave-ins . | . . . Cave-ins Triggered . | . . . Exploration Rate (%) 15 | 3 33 11 Regions Visited 2 Branch Regions 1 Pre-discovered Areas . | . . . Known Exits Taken . | . . . Unknown Exits Taken 2 | 1 1 . Scrap Searched . | . . . Spaces Dug . | . . . Terrain Destroyed . | . . . Melee . | . . . Projectile . | . . . AOE . | . . . Terrain Rammed . | . . . Walls Destroyed . | . . . Machines Disabled . | . . . Actions | -11 -10 -10 --------- Run | Yrd Mat Sub Total 455 | 60 209 186 Wait 33 | . 22 11 Move 356 | 50 159 147 Hop . | . . . Pick Up 6 | 4 2 . Fast Attach 7 | 6 1 . Attach 4 | . 1 3 Detach . | . . . Swap 5 | . 5 . Drop 1 | . 1 . Fire 43 | . 18 25 Melee . | . . . Ram . | . . . Kick . | . . . Crush . | . . . Escape Stasis . | . . . Rewire . | . . . Trap . | . . . Miscellaneous . | . . . Route ------- -11/Scrapyard -10/Materials -10/Subcaves (discovered 1 exit: [*Mat]) History --------- Turn | Location | Event 17 | -11/Scrapyard | Discovered new exit (range 16) 54 | -11/Scrapyard | Entered Materials 305 | -10/Materials | Build established: Mutant 305 | -10/Materials | Discovered new exit (range 7) 313 | -10/Materials | Entered Subcaves 314 | -10/Subcaves | Approached by a straggling Scientist 422 | -10/Subcaves | Shifting Twisted Machinery released Sub. Power Source 509 | -10/Subcaves | Shifting Twisted Machinery released Flamer 519 | -10/Subcaves | Discovered new exit (range 11) 587 | -10/Subcaves | Core integrity fell below 50% 601 | -10/Subcaves | Core integrity fell below 20% 616 | -10/Subcaves | Destroyed by A3-87S(R) with Subdweller Machine Gun Last Messages --------------- 8X-WZB(c): "I think it's somewhere northwest of here" 00519_ EXIT=FOUND 00546_ Lgt. Nuclear Core destroyed. 00548_ 6P-RN0(R) destroyed. 00573_ Subatomizers dissect the Sub. Machine Gun. 00573_ Wheel destroyed. 00573_ WL-TWK(R) destroyed. 00574_ System corrupted: Heat flow error (+236). 00580_ Assault Rifle destroyed. 00587_ TX-KSQ(R) affixes Scrap Shield Fragment to Scrap Shield. 00588_ Wheel destroyed. 00595_ TX-KSQ(R) affixes Scrap Shield Fragment to Scrap Shield. 00596_ Assault Rifle destroyed. 00604_ Ion Engine destroyed. 00606_ Subatomizers dissect the Sub. Machine Gun. Map ----- +----------------------------------------------------+ | ?????????????????????????????????????????????????? | | ?????????????????????????????????????????????????? | | ?????????????????????????????????????????????????? | | ?????????????????????????????????????????????????? | | ?????????????????????????????????????????????????? | | ?????????????????????????????????????????????????? | | ?????????????????????????????????????????????????? | | ?????????????????????????????????????????????????? | | ?????????????????????????????????????????????????? | | ?????????????????????????????????????????????????? | | ?????????????????????????????????????????????????? | | ?????????????????????????????????????????????????? | | ?????????????????????????????????????????????????? | | ?????????????????????????????????????????????????? | | ?????????????????????????????????????????????????? | | ?????????????????????????????????????????????????? | | ?????????????????????????????????????????????????? | | ?????????????????????????????????????????????????? | | ?????????????????????????????????????????????????? | | ?????????????????????????????????????????????????? | | ??????????????????####?????????#####?????????????? | | ?????????????????## ##??????? ""##????????????? | | ?????????????????# ###?????# ""#????????????? | | ??????????????????# ##????# "######???????? | | ?????????????????## < ###### ## #???????? | | ??????????# ### @R ## """ """ ####???? | | ???????????# &&=" % """ ##### | | ???????????# ###### !&*%[ " #"""" # # | | ???????? ???????##= %[%| """"" """ "" | | ???????? ??????????#####& " %*" % "" " | | ???????? ????????????????## ""#"" """""#"# | | ????????? ??????????????????# " ##"""" "### | | ????????? ????????????????????# # "####"""### | | ???????????????????????????????# ##" ### """# | | ??????????????????????????????## # " # & | | ??????????????????????????????# ##" # &% | | ??????????????????????????????## ## " *# | | ???????????????????????????????## # # # %### | | ???????????????????????????????## # %## # #? | | ???????????????????????????????# ##% ## ##? | | ???????????????????????????????# # # #?? | | ???????????????????????????????### # # # % #?? | | ?????????????????????????????????## # # #? | | ??????????????????????????????????## # # #? | | ???????????????????????????????????#### # ^##? | | ????????????????????????????????????? # # ?? | | ???????????????????????????????????? ## ## #? | | ???????????????????????????????????## #### % # | | ????????????????????????????????????#???? | | ?????????????????????????????????????????? ## | +----------------------------------------------------+ Best States ------------- Heat Dissipation 25 Energy Generation 14 Energy Capacity 250 Matter Stores 300 Matter Capacity 300 Sight Range 16 Terrain Scan Density 10 Evasion (%) 44 Recoil Reduction 2 Item Schematics ----------------- None Robot Schematics ------------------ None Fabricated ------------ Nothing Repaired ---------- Nothing Studied --------- None Alien Tech Used ----------------- None Achievements -------------- None Challenges ------------ None Game ------ Seed PlexusHeartMaul Manual? 0 Play Time 00:08:11 Cumulative 13.1 hours Start 2025.12.12 @ 23:38:20 End 2025.12.12 @ 23:43:58 Sessions 1 Manual Loads 0 Difficulty Rogue Special Mode None Game No. 18 Rogue 18 Adventurer 0 Explorer 0 Win Type - Total 0 Types 0/0/0/0/0/0/0/0/0/0 Lore% 5 Gallery% 16 Achievement% 18 Wizard Run 0 Options --------- Layout 1 ASCII 0 Keyboard 0 Movement Numpad Keybinds 0 Fullscreen 1 Font 32/SmallcapsGlow Map View 50x35 Zoom Use 0% Tactical HUD 1 Map Filters NONE Filters NONE Steam 1 RUN: e78a6073-0908-4296-9851-5e1adbca7a7c